bitfinex-derivatives/quotes_BTCF0:USTF0_20240925
["timestamp","ask_amount","ask_price","bid_price","bid_amount"]
[1727246575257,0.099116,64004.0,64003.0,0.3013967]
[1727246576530,0.08303054,64004.0,64003.0,0.40393812]
[1727246576731,0.021,64004.0,64003.0,0.40393812]
[1727246576934,0.021,64004.0,64003.0,0.43473812]
[1727246577735,0.021,64004.0,64003.0,0.40393812]
[1727246577925,0.08303054,64004.0,64003.0,0.30836111]
[1727246578126,0.021,64004.0,64003.0,0.40393812]
[1727246578653,0.021,64004.0,64003.0,0.4039369]
[1727246580733,0.08306886,64004.0,64003.0,0.4039369]
[1727246581181,0.08306886,64004.0,64003.0,0.3795137]
[1727246581328,0.08306886,64004.0,64003.0,0.40393739]
[1727246581637,0.08307015,64004.0,64003.0,0.40393739]
[1727246582431,0.08306952,64004.0,64003.0,0.40393739]
[1727246582738,0.08307044,64004.0,64003.0,0.40393739]
[1727246584425,0.021,64004.0,64003.0,0.46743828]
[1727246584641,0.021,64004.0,64003.0,0.52989218]
[1727246585879,0.021,64004.0,64003.0,0.4419676]
[1727246586531,0.01867202,64011.0,64003.0,0.4419676]
[1727246586532,0.08109935,64011.0,64006.0,0.078113]
[1727246586730,0.09299922,64015.0,64010.0,0.3608]
[1727246586731,0.0036,64014.0,64010.0,0.3608]
[1727246586938,0.07749935,64015.0,64014.0,0.078104]
[1727246587135,0.01490114,64016.0,64015.0,0.078102]
[1727246587136,0.09240049,64016.0,64015.0,0.078102]
[1727246587334,0.07749935,64016.0,64015.0,0.198102]
[1727246587538,0.44316407,64018.0,64016.0,0.078101]
[1727246587539,0.52066342,64018.0,64016.0,0.078101]
[1727246587839,0.44124406,64018.0,64017.0,0.17576806]
[1727246588238,0.45610323,64018.0,64017.0,0.17576806]
[1727246589634,0.078101,64017.0,64016.0,0.16613019]
[1727246589938,0.078101,64017.0,64016.0,0.001]
[1727246590236,0.078101,64017.0,64016.0,0.16713019]
[1727246590538,0.078101,64017.0,64016.0,0.24523119]
[1727246590745,0.38800323,64018.0,64017.0,0.0781]
[1727246591035,0.3708,64018.0,64017.0,0.24955816]
[1727246591440,0.3708,64018.0,64017.0,0.24855816]
[1727246592041,0.3608,64018.0,64017.0,0.24855816]
[1727246592742,0.3708,64018.0,64017.0,0.24955816]
[1727246593538,0.3708,64018.0,64017.0,0.27397808]
[1727246593746,0.01,64018.0,64017.0,0.27397808]
[1727246594041,0.01,64018.0,64017.0,0.27497808]
[1727246594244,0.01,64018.0,64017.0,0.25055816]
[1727246594758,0.01,64018.0,64017.0,0.27497806]
[1727246595529,0.01,64018.0,64017.0,0.25055816]
[1727246596343,0.01,64018.0,64017.0,0.27497806]
[1727246598236,0.01,64018.0,64017.0,0.27497756]
[1727246598848,0.05646923,64018.0,64017.0,0.27497756]
[1727246599145,0.01,64018.0,64017.0,0.27497756]
[1727246599739,0.05646986,64018.0,64017.0,0.25055816]
[1727246600536,0.01,64018.0,64017.0,0.27497697]
[1727246601372,0.01,64018.0,64017.0,0.25055816]
[1727246601541,0.01,64018.0,64017.0,0.27497687]
[1727246605348,0.01,64018.0,64017.0,0.25055816]
[1727246605541,0.01,64018.0,64017.0,0.27497638]
[1727246608250,0.01,64018.0,64017.0,0.32180893]
[1727246610954,0.01,64018.0,64017.0,0.68260893]
[1727246611567,0.01,64018.0,64017.0,0.63577616]
[1727246611753,0.01,64018.0,64017.0,0.68255867]
[1727246612452,0.088099,64018.0,64017.0,0.63577616]
[1727246612859,0.088099,64018.0,64017.0,0.75577616]
[1727246613445,0.088099,64018.0,64017.0,0.55767616]
[1727246613655,0.088099,64018.0,64017.0,0.31687616]
[1727246613951,0.088099,64018.0,64017.0,0.29245816]
[1727246614159,0.16559835,64018.0,64017.0,0.29245816]
[1727246614455,0.166198,64018.0,64017.0,0.29245816]
[1727246614654,0.24375283,64018.0,64017.0,0.29245816]
[1727246614956,0.16565383,64018.0,64017.0,0.29245816]
[1727246615554,0.088099,64018.0,64017.0,0.29245816]
[1727246616258,0.11342115,64018.0,64017.0,0.29245816]
[1727246617657,0.19152015,64018.0,64017.0,0.29245816]
[1727246617954,0.11342115,64018.0,64017.0,0.29245816]
[1727246618154,0.19152015,64018.0,64017.0,0.29245816]
[1727246618661,0.166198,64018.0,64017.0,0.29245816]
[1727246619354,0.2437734,64018.0,64017.0,0.29245816]
[1727246619552,0.166198,64018.0,64017.0,0.29245816]
[1727246619745,0.526998,64018.0,64017.0,0.29245816]
[1727246619949,0.47422076,64018.0,64017.0,0.29245816]
[1727246620350,0.55231976,64018.0,64017.0,0.29245816]
[1727246621061,0.47422076,64018.0,64017.0,0.29245816]
[1727246622260,0.55231976,64018.0,64017.0,0.29245816]
[1727246622461,0.47422172,64018.0,64017.0,0.29245816]
[1727246626863,0.55232072,64018.0,64017.0,0.29245816]
[1727246627064,0.47422172,64018.0,64017.0,0.29245816]
[1727246628459,0.448899,64018.0,64017.0,0.29245816]
[1727246630455,0.52643331,64018.0,64017.0,0.29245816]
[1727246630767,0.47422098,64018.0,64017.0,0.29245816]
[1727246631356,0.448899,64018.0,64017.0,0.29245816]
[1727246633270,0.52642757,64018.0,64017.0,0.29245816]
[1727246633466,0.52642951,64018.0,64017.0,0.29245816]
[1727246635459,0.088099,64018.0,64017.0,0.29245816]
[1727246635654,0.448899,64018.0,64017.0,0.29245816]
[1727246635855,0.47422138,64018.0,64017.0,0.29245816]
[1727246636463,0.47422133,64018.0,64017.0,0.29245816]
[1727246639873,0.088099,64018.0,64017.0,0.31687761]
[1727246640076,0.16566243,64018.0,64017.0,0.29245816]
[1727246640266,0.088099,64018.0,64017.0,0.31687819]
[1727246640583,0.16566243,64018.0,64017.0,0.29245816]
[1727246640967,0.088099,64018.0,64017.0,0.31687775]
[1727246641267,0.088099,64018.0,64017.0,0.3168777]
[1727246641464,0.11341971,64018.0,64017.0,0.3168777]
[1727246641671,0.47421971,64018.0,64017.0,0.29245816]
[1727246643579,0.56721893,64018.0,64017.0,0.29245816]
[1727246643785,0.47421971,64018.0,64017.0,0.29245816]
[1727246644465,0.47422165,64018.0,64017.0,0.29245816]
[1727246647282,0.56722087,64018.0,64017.0,0.29245816]
[1727246648079,0.20642087,64018.0,64017.0,0.29245816]
[1727246648278,0.56722087,64018.0,64017.0,0.29245816]
[1727246650782,0.47422165,64018.0,64017.0,0.29245816]
[1727246660099,0.56739941,64018.0,64017.0,0.29245816]
[1727246660385,0.56739941,64018.0,64017.0,0.3168797]
[1727246663488,0.56739941,64018.0,64017.0,0.29245816]
[1727246663686,0.56739941,64018.0,64017.0,0.3168797]
[1727246666083,0.47422165,64018.0,64017.0,0.3168797]
[1727246666295,0.47422165,64018.0,64017.0,0.29245816]
[1727246667985,0.448899,64018.0,64017.0,0.29245816]
[1727246668185,0.47422169,64018.0,64017.0,0.29245816]
[1727246668381,0.56741303,64018.0,64017.0,0.29245816]
[1727246668686,0.56741303,64018.0,64017.0,0.3168797]
[1727246668889,0.56741303,64018.0,64017.0,0.29245816]
[1727246669393,0.11342169,64018.0,64017.0,0.31687807]
[1727246670102,0.11342169,64018.0,64017.0,0.31687781]
[1727246670292,0.11342169,64018.0,64017.0,0.36367711]
[1727246670597,0.11342169,64018.0,64017.0,0.29245816]
[1727246670800,0.11342169,64018.0,64017.0,0.36367718]
[1727246671394,0.11342169,64018.0,64017.0,0.31687788]
[1727246671597,0.11342169,64018.0,64017.0,0.36367718]
[1727246673599,0.11342169,64018.0,64017.0,0.36367714]
[1727246673799,0.11342169,64018.0,64017.0,0.31687784]
[1727246674005,0.11342169,64018.0,64017.0,0.44177714]
[1727246674006,0.088099,64018.0,64017.0,0.44177714]
[1727246674200,0.165742,64018.0,64017.0,0.50526829]
[1727246674704,0.11341964,64018.0,64017.0,0.31687784]
[1727246675007,0.11341964,64018.0,64017.0,0.19687784]
[1727246675205,0.11341964,64018.0,64017.0,0.31687784]
[1727246675697,0.47421964,64018.0,64017.0,0.31687784]
[1727246677493,0.47422088,64018.0,64017.0,0.31687784]
[1727246679602,0.11342088,64018.0,64017.0,0.31687784]
[1727246679839,0.47422088,64018.0,64017.0,0.29245816]
[1727246680398,0.47422088,64018.0,64017.0,0.3168789]
[1727246682201,0.47422088,64018.0,64017.0,0.29245816]
[1727246682406,0.47422088,64018.0,64017.0,0.31687887]
[1727246683909,0.47422088,64018.0,64017.0,0.19687887]
[1727246684605,0.47422088,64018.0,64017.0,0.17245816]
[1727246687017,0.4742209,64018.0,64017.0,0.17245816]
[1727246687511,0.5523199,64018.0,64017.0,0.19687894]
[1727246687699,0.5523199,64018.0,64017.0,0.1968799]
[1727246688406,0.078104,64014.0,64009.0,0.0467993]
[1727246688598,0.078112,64007.0,64006.0,0.0467993]
[1727246688796,0.078112,64007.0,64006.0,0.19403599]
[1727246689007,0.10343802,64007.0,64006.0,0.0244242]
[1727246689200,0.10343802,64007.0,64003.0,0.1667993]
[1727246689201,0.078116,64004.0,64003.0,0.1667993]
[1727246689401,0.438916,64004.0,64003.0,0.18350744]
[1727246689701,0.438916,64004.0,64003.0,0.35504599]
[1727246689926,0.438916,64004.0,64003.0,0.35504644]
[1727246690298,0.5165507,64004.0,64003.0,0.29153855]
[1727246690497,0.438916,64004.0,64003.0,0.17153855]
[1727246690701,0.438916,64004.0,64003.0,0.29153855]
[1727246691395,0.438916,64004.0,64003.0,0.17153855]
[1727246691599,0.45669366,64004.0,64003.0,0.17153855]
[1727246693802,0.45669366,64004.0,64003.0,0.22039187]
[1727246694514,0.51867168,64004.0,64003.0,0.22039187]
[1727246696113,0.01777766,64004.0,64003.0,0.25946895]
[1727246696416,0.01777766,64004.0,64003.0,0.33758595]
[1727246696609,0.01777766,64004.0,64003.0,0.38435373]
[1727246696815,0.01777766,64004.0,64003.0,0.33758697]
[1727246697802,0.01777766,64004.0,64003.0,0.38435197]
[1727246698304,0.01777766,64004.0,64003.0,0.33758697]
[1727246698508,0.01777766,64004.0,64003.0,0.38435065]
[1727246698721,0.01777766,64004.0,64003.0,0.33758697]
[1727246699242,0.01777766,64004.0,64003.0,0.31316031]
[1727246699419,0.01777766,64004.0,64003.0,0.3375841]
[1727246699712,0.01777766,64004.0,64003.0,0.34526613]
[1727246700310,0.01777766,64004.0,64003.0,0.29850324]
[1727246700508,0.01777766,64004.0,64003.0,0.34526551]
[1727246700909,0.01777766,64004.0,64003.0,0.27407945]
[1727246701731,0.01777766,64004.0,64003.0,0.24965555]
[1727246701911,0.06426962,64004.0,64003.0,0.27407978]
[1727246703808,0.06427413,64004.0,64003.0,0.27407978]
[1727246704719,0.01777766,64004.0,64003.0,0.27407978]
[1727246705918,0.09589366,64004.0,64003.0,0.27407978]
[1727246706118,0.09589366,64004.0,64003.0,0.19596278]
[1727246706319,0.09589366,64004.0,64003.0,0.17153855]
[1727246706727,0.078119,64001.0,64000.0,0.2]
[1727246706912,0.078119,64001.0,64000.0,0.22442643]
[1727246707113,0.338271,64001.0,64000.0,0.39523011]
[1727246707318,0.276238,64001.0,64000.0,0.37080368]
[1727246708023,0.276238,64001.0,64000.0,0.37180368]
[1727246708912,0.3538727,64001.0,64000.0,0.37180368]
[1727246710815,0.7146727,64001.0,64000.0,0.37180368]
[1727246713133,0.66236883,64001.0,64000.0,0.37180368]
[1727246718537,0.66237008,64001.0,64000.0,0.37180368]
[1727246718926,0.54237008,64001.0,64000.0,0.37180368]
[1727246719126,0.66237008,64001.0,64000.0,0.37180368]
[1727246722038,0.58425108,64001.0,64000.0,0.37180368]
[1727246722437,0.558919,64001.0,64000.0,0.37180368]
[1727246724963,0.3608,64001.0,64000.0,0.37180368]
[1727246725258,0.71457561,64001.0,64000.0,0.37180368]
[1727246725755,1.73112876,64001.0,64000.0,0.14787723]
[1727246725956,1.73112876,64001.0,63987.0,0.0036]
[1727246725957,0.078135,63988.0,63987.0,0.0036]
[1727246726152,0.18202303,63989.0,63979.0,0.18960827]
[1727246726351,0.12,63983.0,63980.0,0.10257687]
[1727246726558,0.12,63983.0,63981.0,0.17410408]
[1727246726758,0.12,63983.0,63980.0,0.25224908]
[1727246726956,0.12,63983.0,63980.0,0.078145]
[1727246727154,0.12,63983.0,63981.0,0.17532902]
[1727246728253,0.121,63983.0,63981.0,0.17532902]
[1727246728857,0.13577334,63983.0,63981.0,0.17532902]
[1727246729660,0.13577334,63983.0,63981.0,0.18932902]
[1727246730462,0.21391534,63983.0,63981.0,0.20332902]
[1727246730665,0.078143,63982.0,63981.0,0.20332902]
[1727246731976,0.079143,63982.0,63981.0,0.20332902]
[1727246733761,0.12566135,63982.0,63981.0,0.20332902]
[1727246733967,0.079143,63982.0,63981.0,0.20332902]
[1727246734556,0.12566135,63982.0,63981.0,0.20332902]
[1727246735359,0.079143,63982.0,63981.0,0.20332902]
[1727246735962,0.079143,63982.0,63981.0,0.32332902]
[1727246739759,0.50196603,63982.0,63981.0,0.32332902]
[1727246743965,0.439943,63982.0,63981.0,0.32332902]
[1727246745066,0.079143,63982.0,63981.0,0.32332902]
[1727246745477,0.14116603,63982.0,63981.0,0.32332902]
[1727246745666,0.079143,63982.0,63981.0,0.32332902]
[1727246745866,0.14116603,63982.0,63981.0,0.32332902]
[1727246747475,0.50196603,63982.0,63981.0,0.32332902]
[1727246751177,0.50196603,63982.0,63981.0,0.20332902]
[1727246751408,0.439943,63982.0,63981.0,0.20332902]
[1727246752577,0.439943,63982.0,63981.0,0.2277633]
[1727246754787,0.439943,63982.0,63981.0,0.22776325]
[1727246757088,0.439943,63982.0,63981.0,0.34776325]
[1727246760387,0.51747179,63982.0,63981.0,0.34776325]
[1727246763498,0.43932879,63982.0,63981.0,0.40147302]
[1727246763876,0.43932879,63982.0,63981.0,0.44837212]
[1727246764075,0.43932879,63982.0,63981.0,0.47280634]
[1727246764682,0.51747179,63982.0,63981.0,0.39466234]
[1727246764883,0.439943,63982.0,63981.0,0.3721973]
[1727246765475,0.51747179,63982.0,63981.0,0.3721973]
[1727246765791,0.439943,63982.0,63981.0,0.3721973]
[1727246766907,0.439943,63982.0,63981.0,0.32332902]
[1727246767194,0.439943,63982.0,63981.0,0.37219736]
[1727246767489,0.439943,63982.0,63981.0,0.41129199]
[1727246769890,0.439943,63982.0,63981.0,0.47374589]
[1727246770290,0.079143,63982.0,63981.0,0.47374589]
[1727246770715,0.079143,63982.0,63981.0,0.32332902]
[1727246770879,0.079143,63982.0,63981.0,0.41129196]
[1727246773606,0.079143,63982.0,63981.0,0.34776317]
[1727246773791,0.079143,63982.0,63981.0,0.41129194]
[1727246775504,0.10447879,63982.0,63981.0,0.41129194]
[1727246776695,0.10447879,63982.0,63981.0,0.41129203]
[1727246777094,0.10447879,63982.0,63981.0,0.38685786]
[1727246777292,0.10447879,63982.0,63981.0,0.41129203]
[1727246779796,0.10447879,63982.0,63981.0,0.45820357]
[1727246780334,0.10447879,63982.0,63981.0,0.39467473]
[1727246780609,0.10447879,63982.0,63981.0,0.45820357]
[1727246780801,0.10447879,63982.0,63981.0,0.4337694]
[1727246780994,0.10447879,63982.0,63981.0,0.45820357]
[1727246783202,0.10447882,63982.0,63981.0,0.41129203]
[1727246783699,0.10447882,63982.0,63981.0,0.37219736]
[1727246783902,0.10447882,63982.0,63981.0,0.45820365]
[1727246785799,0.10447882,63982.0,63981.0,0.41129211]
[1727246786101,0.10447882,63982.0,63981.0,0.45820365]
[1727246786597,0.10447882,63982.0,63981.0,0.33820365]
[1727246787131,0.10447882,63982.0,63981.0,0.27467473]
[1727246787297,0.10447882,63982.0,63981.0,0.31376948]
[1727246787502,0.10447882,63982.0,63981.0,0.33820368]
[1727246788903,0.10447882,63982.0,63981.0,0.028]
[1727246788904,0.18262182,63982.0,63981.0,0.028]
[1727246789095,0.27564491,63982.0,63981.0,0.028]
[1727246789593,1.77564491,63982.0,63981.0,0.028]
[1727246790304,1.77564491,63982.0,63981.0,0.024]
[1727246791092,1.77464491,63982.0,63981.0,0.01]
[1727246791410,1.77564491,63982.0,63981.0,0.018]
[1727246791601,2.84452491,63982.0,63981.0,0.018]
[1727246793504,2.78290182,63982.0,63981.0,0.018]
[1727246794404,2.18290182,63982.0,63981.0,0.018]
[1727246794611,2.78290182,63982.0,63981.0,0.018]
[1727246794908,2.87595429,63982.0,63981.0,0.018]
[1727246795113,1.37595429,63982.0,63981.0,0.018]
[1727246795498,0.77595429,63982.0,63981.0,0.018]
[1727246795902,0.89595429,63982.0,63981.0,0.018]
[1727246796107,1.49595429,63982.0,63981.0,0.018]
[1727246796402,0.89595429,63982.0,63981.0,0.018]
[1727246796601,1.49595429,63982.0,63981.0,0.018]
[1727246798510,0.89595429,63982.0,63981.0,0.018]
[1727246799009,0.42707429,63982.0,63981.0,0.018]
[1727246799205,0.19753129,63982.0,63981.0,0.018]
[1727246799411,0.22447882,63982.0,63981.0,0.18340729]
[1727246806618,0.22448077,63982.0,63981.0,0.18340729]
[1727246807705,0.30262377,63982.0,63981.0,0.18340729]
[1727246808710,0.22448077,63982.0,63981.0,0.18340729]
[1727246809515,0.30262377,63982.0,63981.0,0.18340729]
[1727246809717,0.30262377,63982.0,63981.0,0.018]
[1727246810319,0.39567624,63982.0,63981.0,0.018]
[1727246810630,0.30262377,63982.0,63981.0,0.018]
[1727246811321,0.3026257,63982.0,63981.0,0.018]
[1727246811710,0.1826257,63982.0,63981.0,0.018]
[1727246811907,0.3026257,63982.0,63981.0,0.018]
[1727246813218,0.3026257,63982.0,63981.0,0.017]
[1727246813820,0.39567817,63982.0,63981.0,0.016]
[1727246814030,0.94270117,63982.0,63981.0,0.016]
[1727246814210,1.54270117,63982.0,63981.0,0.016]
[1727246814512,1.4496487,63982.0,63981.0,0.016]
[1727246814712,1.54271352,63982.0,63981.0,0.016]
[1727246815015,1.4496487,63982.0,63981.0,0.016]
[1727246815214,2.8715057,63982.0,63981.0,0.016]
[1727246816023,2.94964927,63982.0,63981.0,0.016]
[1727246816433,2.87150627,63982.0,63981.0,0.00399547]
[1727246816614,2.93264236,63982.0,63981.0,0.00399547]
[1727246816814,2.81264236,63982.0,63981.0,0.00399547]
[1727246817127,3.01078536,63982.0,63981.0,0.00399547]
[1727246817726,2.93264236,63982.0,63981.0,0.00399547]
[1727246817922,3.01078536,63982.0,63981.0,0.00399547]
[1727246819431,2.41078536,63982.0,63981.0,0.00399547]
[1727246820116,2.41078536,63982.0,63981.0,0.00093092]
[1727246820329,2.33264236,63982.0,63981.0,0.00093092]
[1727246820529,2.77717471,63982.0,63981.0,0.00093092]
[1727246820737,2.77715061,63982.0,63981.0,0.00093092]
[1727246822234,0.62715997,63982.0,63981.0,0.00093092]
[1727246822530,0.66901697,63982.0,63981.0,0.00093092]
[1727246823034,0.078151,63975.0,63974.0,0.1509]
[1727246823229,0.51654214,63975.0,63974.0,0.1509]
[1727246823421,0.51654214,63975.0,63974.0,0.31723765]
[1727246824426,0.51954214,63975.0,63974.0,0.31723765]
[1727246825327,0.51954214,63975.0,63974.0,0.34167564]
[1727246826031,0.52354214,63975.0,63974.0,0.34167564]
[1727246827034,0.3678,63975.0,63974.0,0.41982764]
[1727246827439,0.38275408,63975.0,63974.0,0.44426411]
[1727246827829,0.38275408,63975.0,63974.0,0.44426237]
[1727246828128,0.46090508,63975.0,63974.0,0.24611037]
[1727246828832,0.53849622,63975.0,63974.0,0.2216739]
[1727246829030,0.53849622,63975.0,63974.0,0.1907739]
[1727246829236,0.4862451,63975.0,63974.0,0.16633765]
[1727246829430,0.4832451,63975.0,63974.0,0.16633765]
[1727246829761,0.4802451,63975.0,63974.0,0.16633765]
[1727246830035,0.4802451,63975.0,63974.0,0.16833765]
[1727246830337,0.4792451,63975.0,63974.0,0.16933765]
[1727246830832,0.5992451,63975.0,63974.0,0.003]
[1727246831138,0.73700897,63975.0,63974.0,0.003]
[1727246831336,1.98331355,63975.0,63974.0,0.00076758]
[1727246831538,1.87474677,63975.0,63974.0,0.00076758]
[1727246832131,1.95289777,63975.0,63974.0,0.00076758]
[1727246832525,0.078166,63963.0,63960.0,0.0319]
[1727246832729,0.50614002,63963.0,63960.0,0.0319]
[1727246832927,0.02534002,63962.0,63960.0,0.0319]
[1727246833328,0.02534002,63962.0,63956.0,0.0316]
[1727246833649,0.4808,63957.0,63956.0,0.0316]
[1727246834140,0.558973,63957.0,63956.0,0.0316]
[1727246835637,0.6209441,63957.0,63956.0,0.0316]
[1727246835839,0.6219441,63957.0,63956.0,0.0396]
[1727246836037,0.5029441,63957.0,63956.0,0.0506]
[1727246837428,0.440973,63957.0,63956.0,0.0506]
[1727246837635,0.5029441,63957.0,63956.0,0.0506]
[1727246838936,0.4247711,63957.0,63956.0,0.0506]
[1727246839336,0.3628,63957.0,63956.0,0.0506]
[1727246839556,0.37746985,63957.0,63956.0,0.0506]
[1727246840932,0.49746985,63957.0,63956.0,0.0506]
[1727246841234,0.55941065,63957.0,63956.0,0.0506]
[1727246841741,0.63758365,63957.0,63956.0,0.0506]
[1727246843633,0.57564285,63957.0,63956.0,0.0506]
[1727246850836,0.57564285,63957.0,63956.0,0.019]
[1727246852336,0.63758365,63957.0,63956.0,0.019]
[1727246854342,0.57564285,63957.0,63956.0,0.019]
[1727246856338,0.21484285,63957.0,63956.0,0.019]
[1727246856535,0.57564285,63957.0,63956.0,0.019]
[1727246856747,0.49746985,63957.0,63956.0,0.019]
[1727246857248,0.49746985,63957.0,63956.0,0.19072828]
[1727246858039,0.57564285,63957.0,63956.0,0.19072828]
[1727246860042,0.57564285,63957.0,63956.0,0.26890228]
[1727246860043,0.65320822,63957.0,63956.0,0.26890228]
[1727246860246,0.45503522,63957.0,63956.0,0.26890228]
[1727246860452,0.40281609,63957.0,63956.0,0.26890228]
[1727246860851,0.04201609,63957.0,63956.0,0.26890228]
[1727246861049,0.04201512,63957.0,63956.0,0.26890228]
[1727246861244,0.09431095,63957.0,63956.0,0.31581207]
[1727246861446,0.09431095,63957.0,63956.0,0.26890228]
[1727246862054,0.09431095,63957.0,63956.0,0.31581728]
[1727246862055,0.01666985,63957.0,63956.0,0.31581728]
[1727246862353,0.01666985,63957.0,63956.0,0.26890228]
[1727246862354,0.09431913,63957.0,63956.0,0.26890228]
[1727246863359,0.09431913,63957.0,63956.0,0.31581248]
[1727246865547,0.01666985,63957.0,63956.0,0.26890228]
[1727246865750,0.01666985,63957.0,63956.0,0.29334487]
[1727246866764,0.01666985,63957.0,63956.0,0.34024903]
[1727246867354,0.01666985,63957.0,63956.0,0.29334487]
[1727246868769,0.01666985,63957.0,63956.0,0.29334489]
[1727246871066,0.002,63957.0,63956.0,0.73231889]
[1727246871247,0.002,63957.0,63956.0,0.79586584]
[1727246871585,0.002,63957.0,63956.0,0.7958588]
[1727246871753,0.04656595,63958.0,63957.0,0.156346]
[1727246871955,0.06210408,63962.0,63961.0,0.078168]
[1727246872156,0.06210408,63962.0,63961.0,0.22260766]
[1727246872455,0.06210408,63963.0,63962.0,0.078167]
[1727246872657,0.06210408,63963.0,63962.0,0.64640666]
[1727246872854,0.06210408,63963.0,63962.0,0.81362524]
[1727246873251,0.06210408,63963.0,63962.0,0.73272793]
[1727246873558,0.06210408,63963.0,63962.0,0.77958049]
[1727246873756,0.06210408,63963.0,63962.0,0.7404778]
[1727246873948,0.06210408,63963.0,63962.0,0.7454778]
[1727246874153,0.06210408,63963.0,63962.0,0.8090198]
[1727246874354,0.06210408,63964.0,63962.0,0.76216724]
[1727246874661,0.06210408,63964.0,63963.0,0.10260566]
[1727246874861,0.06210408,63964.0,63963.0,0.10260532]
[1727246875062,0.06210408,63964.0,63963.0,0.26893367]
[1727246875261,0.06210408,63964.0,63963.0,0.30803641]
[1727246876353,0.14026708,63965.0,63963.0,0.2543096]
[1727246876561,0.14026708,63965.0,63964.0,0.14170706]
[1727246877154,0.14026708,63965.0,63964.0,0.10260432]
[1727246878159,0.14026708,63965.0,63964.0,0.10460432]
[1727246878684,0.14026708,63965.0,63964.0,0.080165]
[1727246878954,0.14026708,63965.0,63964.0,0.10760428]
[1727246880065,0.14026708,63965.0,63964.0,0.02943928]
[1727246880262,0.438963,63965.0,63964.0,0.02943928]
[1727246880561,0.438963,63965.0,63964.0,0.005]
[1727246881583,0.63550434,63965.0,63964.0,0.005]
[1727246881861,0.54246956,63965.0,63964.0,0.005]
[1727246883053,1.01146956,63965.0,63964.0,0.005]
[1727246883860,0.54246956,63965.0,63964.0,0.005]
[1727246892469,0.517126,63965.0,63964.0,0.005]
[1727246892774,0.54247266,63965.0,63964.0,0.005]
[1727246893278,0.63546661,63965.0,63964.0,0.005]
[1727246893871,0.54247266,63965.0,63964.0,0.005]
[1727246894177,0.62063566,63965.0,63964.0,0.005]
[1727246897183,0.595289,63965.0,63964.0,0.005]
[1727246897375,0.62063597,63965.0,63964.0,0.005]
[1727246901272,0.54247297,63965.0,63964.0,0.005]
[1727246901474,0.55726072,63965.0,63964.0,0.005]
[1727246901681,0.46430997,63965.0,63964.0,0.005]
[1727246901886,0.4643083,63965.0,63964.0,0.005]
[1727246902192,0.5843083,63965.0,63964.0,0.005]
[1727246905674,0.2235083,63965.0,63964.0,0.005]
[1727246905872,0.5843083,63965.0,63964.0,0.005]
[1727246906486,0.67725905,63965.0,63964.0,0.005]
[1727246906687,0.67725912,63965.0,63964.0,0.005]
[1727246906887,0.31645912,63965.0,63964.0,0.005]
[1727246907091,0.67725912,63965.0,63964.0,0.005]
[1727246907594,0.31645912,63965.0,63964.0,0.005]
[1727246907794,0.67725912,63965.0,63964.0,0.005]
[1727246909279,0.59909612,63965.0,63964.0,0.005]
[1727246909482,0.59927129,63965.0,63964.0,0.005]
[1727246910683,0.50614537,63965.0,63964.0,0.005]
[1727246911981,0.58430837,63965.0,63964.0,0.005]
[1727246913883,0.22350837,63965.0,63964.0,0.005]
[1727246914187,0.58430837,63965.0,63964.0,0.005]
[1727246916984,0.22350837,63965.0,63964.0,0.005]
[1727246917180,0.558963,63965.0,63964.0,0.005]
[1727246917886,0.198163,63965.0,63964.0,0.005]
[1727246918088,0.558963,63965.0,63964.0,0.005]
[1727246919793,0.6365315,63965.0,63964.0,0.005]
[1727246922584,0.2757315,63965.0,63964.0,0.005]
[1727246922789,0.6365315,63965.0,63964.0,0.005]
[1727246925795,0.2757315,63965.0,63964.0,0.005]
[1727246925997,0.6365315,63965.0,63964.0,0.005]
[1727246926191,0.558963,63965.0,63964.0,0.005]
[1727246928194,0.58430636,63965.0,63964.0,0.005]
[1727246928607,0.22350636,63965.0,63964.0,0.005]
[1727246928899,0.58430636,63965.0,63964.0,0.005]
[1727246929701,0.46430636,63965.0,63964.0,0.005]
[1727246929893,0.09312592,63969.0,63964.0,0.005]
[1727246929894,0.07760047,63967.0,63964.0,0.39100035]
[1727246930194,0.0072,63971.0,63964.0,0.39100035]
[1727246930195,0.07760047,63968.0,63967.0,0.078161]
[1727246930399,0.07760047,63969.0,63968.0,0.12]
[1727246930597,0.078158,63970.0,63969.0,0.078158]
[1727246930899,0.078158,63969.0,63968.0,0.12]
[1727246931101,0.15577126,63969.0,63968.0,0.12]
[1727246931395,0.07816,63968.0,63966.0,0.198162]
[1727246931597,0.07816,63968.0,63967.0,0.02443916]
[1727246931797,0.07816,63968.0,63967.0,0.19565346]
[1727246932098,0.07816,63968.0,63967.0,0.27381446]
[1727246932999,0.07916,63968.0,63967.0,0.27381446]
[1727246936328,0.07916,63968.0,63967.0,0.2493753]
[1727246936508,0.07916,63968.0,63967.0,0.27381414]
[1727246939911,0.07916,63968.0,63967.0,0.27381412]
[1727246942052,0.07916,63968.0,63967.0,0.2493753]
[1727246942203,0.07916,63968.0,63967.0,0.27381412]
[1727246947523,0.001,63968.0,63967.0,0.27381412]
[1727246952134,0.001,63968.0,63967.0,0.33735005]
[1727246952135,0.06310816,63968.0,63967.0,0.33735005]
[1727246952315,0.001,63968.0,63967.0,0.33735005]
[1727246953121,0.001,63968.0,63967.0,0.39985461]
[1727246953326,0.001,63968.0,63967.0,0.33735005]
[1727246954125,0.001,63968.0,63967.0,0.39985461]
[1727246954326,0.001,63968.0,63967.0,0.33735005]
[1727246954531,0.001,63968.0,63967.0,0.39985461]
[1727246954935,0.001,63968.0,63967.0,0.41551105]
[1727246955433,0.001,63968.0,63967.0,0.41551013]
[1727246955935,0.001,63968.0,63967.0,0.39107107]
[1727246956236,0.001,63968.0,63967.0,0.41550752]
[1727246956439,0.001,63968.0,63967.0,0.45460595]
[1727246956938,0.001,63968.0,63967.0,0.46953064]
[1727246957330,0.001,63968.0,63967.0,0.43043221]
[1727246958445,0.001,63968.0,63967.0,0.49289328]
[1727246958626,0.001,63968.0,63967.0,0.16613222]
[1727246958829,0.14126816,63968.0,63967.0,0.13482059]
[1727246959033,0.14246,63968.0,63967.0,0.08797122]
[1727246959437,0.22010841,63968.0,63967.0,0.08797122]
[1727246959645,0.16780178,63968.0,63967.0,0.08797122]
[1727246959937,0.16780178,63968.0,63960.0,0.24501837]
[1727246959938,0.08964178,63968.0,63960.0,0.24501837]
[1727246960237,0.06211524,63961.0,63960.0,0.198169]